{"text_format":"1","workbook":"xlsx","n_sheets":4,"sheets":["GFFT23","METADATOS","Documento Equivalente","DESPLEGABLE"],"not_rendered":{"charts":0,"images":2,"macros":1,"external_links":0,"defined_names":70,"comments":2,"pivot_tables":0},"unopened":[],"bounds":{"document_bytes":16777216,"sheet_cells":100000,"rows_first":2000,"rows_last":500,"rows_between":2000,"halvings":0,"cell_chars":16384,"cell_head_chars":4096},"cells_cut":0,"cells_raw":0,"read":"whole","date_system":"1900"}

{"sheet":"GFFT23","index":0,"n_rows":56,"n_cols":10,"rows_kept":56,"cut":false,"hidden":false,"merged":[[15,11,15,12],[28,10,28,13],[6,8,6,9],[5,8,5,9],[3,1,3,4],[3,7,4,7],[0,1,0,7],[1,1,2,7],[42,4,43,4],[29,5,29,6],[30,5,30,6],[31,5,31,6],[32,5,32,6],[21,5,21,6],[4,1,4,2],[13,5,13,6],[39,7,39,8]]}
[null,"GESTIÓN FINANCIERA",null,null,null,null,null,null,"CÓDIGO","GFFT23"]
[null,"LIQUIDACIÓN DE DEDUCCIONES",null,null,null,null,null,null,"VERSIÓN",2]
[null,null,null,null,null,null,null,null,"FECHA","2023-07-05"]
["BENEFICIARIO DEL PAGO:  ",null,null,null,null,"CC o NIT",null,"CONTRATO","NÚMERO","AÑO"]
["ORDEN DE PAGO No.",null,null,null,null,"FECHA:"]
["LIQUIDACIÓN DE IMPUESTOS CONTRATISTAS",null,"Vr. UVT 20XX",38004,0,"Vr salario Mínimo",0,"RUBRO"]
["CONCEPTO","VR. PARCIAL","VR. TOTAL",null,null,"TOPES Y OBSERVACIONES",null,"CÓDIGO DEPENDENCIA"]
["Pagos o abonos en cuenta sin iva",0,null,null,{"$f":"ROUND(IF(G11=0,(B8*40%)),0)","v":0},"XX % Base para cálculo de S.social",null,"VALOR TOTAL DEL CONTRATO"]
["IVA honorarios",0,{"$f":"ROUND((+B9*0.15),0)","v":0},null,0.19,"Tarifa Iva",null,"PAGO MENSUAL POR "]
["Gastos de Viaje",0,null,null,null,null,null,"FACTURA / DOC EQUIVALENTE No.","SI"]
["INGRESO TOTAL FISCAL DEL PERIODO",{"$f":"ROUND(SUM(B8:B10),0)","v":0},{"$f":"+B11-B9","v":0},null,null,"Base Primer Pago",0,"MES DEL PAGO","2023-02-01"]
["INGRESOS NO CONSTITUTIVOS DE RENTA NI GANANCIA ",null,"VALOR",null,null,null,null,"No COMPROMISO"]
["Aportes Obligatorios a Pensión art 55 ET",{"$f":"IF($G$20=\"NO\",ROUND((E8*16%)+(G11*16%),-2),0)","v":0},{"$f":"ROUND((+B13),0)","v":0},null,null,null,null,"FECHA INICIO CONTRATO"]
["FSP",{"$f":"ROUND(IF(E8>=(G6*4),(E8*1%),0)+IF(G11>=(G6*4),(G11*1%),0),-2)","v":0},{"$f":"+B14","v":0},null,{"$f":"+E8/G6","v":{"$error":"#DIV/0!"}},null,null,"FECHA FINAL CONTRATO"]
["Aportes Obligatorios Salud art 56 ET",{"$f":"ROUND((E8*12.5%)+(G11*12.5%),-2)","v":0},{"$f":"ROUND((+B15),0)","v":0},null,null,null,null,"VALOR DIARIO DEL CONTRATO"]
["Total Rentas INCRNGO",null,{"$f":"SUM(C13:C15)","v":0},null,null,null,null,"VALOR PRIMER PAGO","HASTA",{"$f":"+L7","v":0}]
["INGRESO GRAVABLE",null,{"$f":"+B8+B10-C16","v":0},null,null,null,null,"No DÍAS PRIMER PAGO",null,{"$f":"+I13-I17","v":0}]
["RENTA EXENTA ","VR.TOTAL","MONTO MÁXIMO DE DEDUCCIÓN",null,null,null,null,"VALOR DEL PRIMER PAGO",null,{"$f":"+J17*I15","v":0}]
["Pensiones Voluntarias",0,{"$f":"ROUND(IF(B19<=E22,(B19),E22),0)","v":0},null,0,"DEPENDIENTES","SI","VALOR ÚLTIMO PAGO","HASTA",{"$f":"+L10","v":0}]
["AFC",0,{"$f":"ROUND(IF(B20<=E22,(B20),E22),0)","v":0},null,0,"PENSIONADO","NO","No DIAS ÚLTIMO PAGO",null,{"$f":"+I14-I20","v":0}]
["Otro",0,{"$f":"ROUND(IF(B21<=E22,(B21),E22),0)","v":0},null,0,null,null,"VALOR DEL ÚLTIMO PAGO",null,{"$f":"+I15*J20","v":0}]
["Total Rentas Exentas",{"$f":"ROUND((+B19+B20+B21),0)","v":0},{"$f":"IF((+C19+C20+C21)>=E22,E22,(+C19+C20+C21))","v":0},null,{"$f":"+($B$8+B10)*0.3","v":0},"Máx. X% de pago o abono "]
["DEDUCCIONES","VR.TOTAL","MONTO MÁXIMO DE DEDUCCIÓN",null,null,null,null,"* Favor tener en cuenta que este formato debe ser utilizado habilitando el  Excel para macros"]
["Medicina Prepagada",0,{"$f":"ROUND(IF((B24/G24)<=E24,(B24/G24),E24),0)","v":0},null,{"$f":"16*E6","v":0},"MEDICINA PREP XX UVT",12]
["Dependendientes",{"$f":"ROUND(IF((G19=\"SI\"),((+B8+B10)*10%),0),0)","v":0},{"$f":"ROUND(IF(B25<=E25,(B25),E25),0)","v":0},null,{"$f":"+E6*72","v":0},"X% de Ingresos Brutos XX UVT por dep Max x dep. "]
["Intereses Vivienda",0,{"$f":"ROUND(IF(B26/12<=E26,(B26/12),E26),0)","v":0},null,{"$f":"100*E6","v":0},"Credito Hipotecario xxx UVT"]
["ARL",{"$f":"IF(E27=\"SI\",_xlfn.CEILING.MATH((+E8*G27)+(G11*G27),100))","v":0},{"$f":"+B27","v":0},null,"SI","TARIFA RIESGO",{"$f":"IF(G28=1,0.522%,IF(G28=2,1.044%,IF(G28=3,2.436%,IF(G28=4,4.35%,IF(G28=5,6.96%,0)))))","v":0}]
["Total Deducciones",{"$f":"ROUND((+B24+C25+B26+B15+B27),0)","v":0},{"$f":"+C24+C25+C26+C27","v":0},null,null,"RIESGO",0]
["Ingresos antes renta exenta art 206",null,{"$f":"+C17-C22-C28","v":0}]
["Renta Exenta 25% numeral 10 art 206",null,{"$f":"ROUND(IF(C29*25%<=E30,(C29*25%),E30),0)","v":0},null,{"$f":"240*+E6","v":0},"deducción máxima XXX UVT"]
["Total Deducciones y renta exentas",{"$f":"+C30+C28+C22","v":0},{"$f":"IF((+B31)>=E31,E31,(+B31))","v":0},null,{"$f":"+C17*40/100","v":0},"Hasta 40% Pago menos INCRGO"]
["Base Retencion en la Fte en $",null,{"$f":"+C17-C31","v":0},null,null,"Base retencion en pesos"]
["Base gravable en UVT art.383 E.T.",null,{"$f":"+C32/E6","v":{"$error":"#DIV/0!"}},null,"VR. RETENCION","VALOR A PAGAR"]
["Retefuente a aplicar > 95 y <150",null,{"$f":"IF(AND(C33>=95,C33<=150),((C33-95)*19%))","v":{"$error":"#DIV/0!"}},null,{"$f":"ROUND((+C34*$E$6),0)","v":{"$error":"#DIV/0!"}},"TOTAL INGRESO",{"$f":"ROUND((+$B$11-$B$10),0)","v":0}]
["Retefuente a aplicar >150 y <360",null,{"$f":"IF(AND(C33>=150.01,C33<=360),((C33-150)*28%+10))","v":{"$error":"#DIV/0!"}},null,{"$f":"ROUND((+C35*$E$6),0)","v":{"$error":"#DIV/0!"}},"RET. IMPUESTOS",{"$f":"+E41+C9","v":{"$error":"#DIV/0!"}}]
["Retefuente a aplicar >360 y <640",null,{"$f":"IF(AND(C33>=360.01,C33<=640),((C33-360)*33%+69))","v":{"$error":"#DIV/0!"}},null,{"$f":"ROUND((+C36*$E$6),0)","v":{"$error":"#DIV/0!"}}]
["Retefuente a aplicar >640 y <945",null,{"$f":"IF(AND(C33>=640.01,C33<=945),((C33-640)*35%+162))","v":{"$error":"#DIV/0!"}},null,{"$error":"#DIV/0!"},"AFC",{"$f":"B20","v":0}]
["Retefuente a aplicar >945 y <2300",null,{"$f":"IF(AND(C33>=945.01,C33<=2300),((C33-945)*37%+268))","v":{"$error":"#DIV/0!"}},null,{"$error":"#DIV/0!"},"PENSIÓN VOLUNTARIA",{"$f":"+C19","v":0}]
["Retefuente a aplicar >2300 en adelante",null,{"$f":"IF(AND(C33>=2300.01),((C33-2300)*39%+770))","v":{"$error":"#DIV/0!"}},null,{"$f":"ROUND((+C39*$E$6),-2)","v":{"$error":"#DIV/0!"}}]
["Valor retención ICA 9,66/1000",9.6600000000000002E-3,{"$f":"+C11-C16-B27","v":0},null,{"$f":"ROUND(IF(C40>=1,+C40*B40,0),0)","v":0},"EMBARGO OTROS*",0,"TOTAL PAGO DE SEGURIDAD SOCIAL"]
["TOTAL RETENCIONES  ",null,null,null,{"$f":"SUM(E34:E40)","v":{"$error":"#DIV/0!"}},"VR. A GIRAR",{"$f":"ROUND((+G34-G35-G39-G40-G38-G40-G37),0)","v":{"$error":"#DIV/0!"}},"VALOR PAGADO","PERIODO PAGADO"]
["LIQUIDACIÓN IMPUESTOS PERSONA JURÍDICA SERVICIOS - COMPRAS ",null,null,null,"OBSERVACIONES",null,null,{"$f":"+C13+C14+C15+C27","v":0},"2023-02-01"]
["Compras no gravadas con IVA",null,0,null,"Numero Contrato","Nº","Año"]
["servicios no gravados con IVA",null,0,null,null,{"$f":"+I5","v":0},{"$f":"+J5","v":0}]
["Compras gravadas",null,0,null,"Compromiso",{"$f":"+I12","v":0}]
["Sevicios gravadas",null,0,null,"Pago",{"$f":"+I11","v":"2023-02-01"}]
["Subtotal factura ",null,{"$f":"+C43+C45+C46+C44","v":0},null,"Rubro: ",{"$f":"+I6","v":0}]
["IVA",0.19,{"$f":"ROUND((C45+C46)*B48,0)","v":0},null,"Factura / Doc Equivalente",{"$f":"+J10","v":0}]
["IVA",0.05,{"$f":"(+C45+C46)*B49","v":0}]
["Valor Total incluido IVA",null,{"$f":"+C47+C48+C49","v":0},null,"BASE","NIT BENEFICIARIO","NOMBRE BENEFICIARIO"]
["Retefuente - Servicios",0,{"$f":"ROUND((E51)*(B51),0)","v":0},null,null,null,"DIAN"]
["Rete IVA",0,{"$f":"ROUND((+C48*$B$52+C49),0)","v":0},null,null,null,"DIAN"]
["RETE ICA",0,{"$f":"ROUND(((E53)*B53),0)","v":0},null,null,null,"MUNICIPIO / DISTRITO"]
["Total a pagar",null,{"$f":"+C50-C51-C52-C53","v":0},null,null,null,null,"Nota: Se deben tener en cuenta los viáticos pagados al funcionario en el periodo a cobrar, ya que estos hacen parte de los ingresos para la liquidación de las retenciones. "]
["Liquidó impuestos:",null,"Revisó"]
["Nombre:",null,"Nombre:"]

{"sheet":"METADATOS","index":1,"n_rows":66,"n_cols":5,"rows_kept":66,"cut":false,"hidden":false,"merged":[[65,0,65,4],[0,0,0,4],[1,0,1,4],[8,0,8,4],[25,0,25,4],[32,0,32,4],[42,0,42,4]]}
["INSTRUCCIONES DE DILIGENCIAMIENTO "]
["FORMATO  DE LIQUIDACIÓN DE IMPUESTOS"]
["* Favor tener en cuenta que este formato debe ser utilizado habilitando el  Excel para macros"]
["Atributo","Descripción del atributo","Tipo de Atributo","Ejemplo de Registro ","Calidad de dato"]
["BENEFICIARIO DEL PAGO:  ","Nombre del Tercero que radica la cuenta ya sea persona Natural o Juridica ","Atributo texto","Liliana Cifuentes Pregonero","Los textos se registran en minúsculas,  se usan mayúscula al inicio de  nombres y Apellidos"]
["ORDEN DE PAGO No.","Consecutivo de control. ","Atributo texto","OP 642","Numero que debe corresponder a una secuencia con control de consecutivos. "]
["CC o NIT","Atributo que describe el tipo documento Nacional de Identidad  del tercero. ","Atributo de selección",10112085,"Este campo esta directemante relacionado con  el número  correspondendiate al tipo de documento del  titular de la cuenta de cobro. "]
["FECHA:","Atributo que describe la fecha de la aceptación de la cuenta. ","Atributo de selección","2022-06-20","Fecha a partir de la cual inica el tiempo que tiene el area de tesoreria para tramitar el pago de la cuenta. "]
["INFORMACION DEL CONTRATO "]
["CONTRATO No. ","Consecutivo de control. ","Atributo texto",69,"Numero de contrato del cual corresponde la cuenta de cobro que se está gestionando. "]
["AÑO","Vigencia en la cual se celebró el contrato. ","Atributo texto",2022,"Año en el cual fue celebrado el contrato del cual se esta gestionando el pago. "]
["RUBRO","Atributo que describe el código del rubro a ejecutar","Atributo automático","C-1999-0300-8-0-1999053-02","Se registra la clasificación del presupuesto de la Entidad que el contratista informa en el formato GFFT 14"]
["CÓDIGO DEPENDENCIA","Atributo que describe el código de la dependencia que ejecuta. ","Atributo automático","19-10-00-12","Este campo esta directemante relacionado con la dependencia a la que pertenece solicitante"]
["VALOR TOTAL DEL CONTRATO","Valor total del contrato celebrado. ","Atributo texto",65381209,"Valor total por el cual se celebró el contrato a ejecutar. "]
["PAGO MENSUAL POR ","Valor mensual acordado. ","Atributo texto",9734175,"Valor que se acordo como pago mensual en el contrato y número de pagos. "]
["FACTURA / DOC EQUIVALENTE No.","SI / NO","Atributo de selección","Si o no ","Se especifica si el tercero factura o no, si la respuesta es afirmativa en la casiila de en frente se diligencia con el consecutivo de la factura, si es negativa se deja en blanco para que Contabilidad asigne un Documento equivalente. "]
["No COMPROMISO","Atributo que corresponde al consecutivo generado automaticamente en SIIF por parte el Grupo de Presupuesto. ","Atributo texto",11021,"El grupo de presupuesto luego de recibir el inicio de un acto administrativo genera en el Sistema SIIF Nación un proceso donde se compromete el presupuesto de la entidad para el contrato en cuestión obteniendo un consecutivo que permitirá identificar y controlar los saldos de dicho contrato. "]
["Mes de pago","Periodo del cual se esta realizando el cobro","Atributo de selección","2022-05-01","Fecha correspondiente al mes que se esta pagando."]
["FECHA INICIO CONTRATO","Atributo que describe la fecha de la aceptación de la cuenta. ","Atributo de selección","2022-01-12","Fecha de inicio del contrato"]
["FECHA FINAL CONTRATO","Atributo que describe la fecha de la aceptación de la cuenta. ","Atributo de selección","2022-07-29","Fecha de final del contrato"]
["VALOR DIARIO DEL CONTRATO","Valor diario del contrato.","Atributo automático",324472.5,"Valor formulado que se obtiene de dividir el valor mensual del contrato por 30 días."]
["VALOR PRIMER PAGO","Valor del primer pago del contrato. ","Atributo automático",7300631.25,"PRIMER PAGO (Circular 2023940000000007-4 DE 2023) el valor del contrato en moneda legal colombiana...o proporcional al\nservicio prestado y los días ejecutados, lo cual se contabilizará a\npartir de la fecha de suscripción del acta de inicio, de acuerdo con\nlos servicios efectivamente prestados y recibidos a satisfacción\npor parte del supervisor del contrato en dicho periodo. El últimopago será proporcional al servicio prestado y los días efectivamente\nejecutados."]
["No Dias PRIMER PAGO","Día de inicio del contrato ","Atributo de selección","14 días","De acuerdo al ejemplo se inico el contrato en el día 24 y se calcula el valor del primer pago de acuerdo a los días. "]
["VALOR ULTIMO PAGO","Valor del ultimo pago del contrato.","Atributo automático",9409702.5,"El ultimo pago corresponde a la proporción que se calcule de acuerdo a los dias que se especifiquen en el contrato. "]
["No DIAS ULTIMO PAGO","Días que corresponden al ultimo pago del contrato.","Atributo de selección","29 días ","de acuerdo a la fecha final del contrato se toma el primer día del mes y se realiza el calculo automático de los días multiplicandolos por el valor diario del contrato para determitar el ultimo paga del mismo. "]
["TOPES Y OBSERVACIONES"]
["40% Base para el pago de Seguridad Social","Valor calculado sobre el ingreso mensual ","Atributo automático",3893670,"Valor calculado automáticamente para saber la base minima de contización de seguridad social. "]
["Base Primer Pago","Base para cotizar salud y pension en la primera cuenta de cobro.","Atributo texto",1600000,"En el primer pago el contratista puede cotizar sobre el 40%  del valor a cobrar en su primera cuenta de cobro por lo que si es el caso se debe diligenciar de manera manual. "]
["DEPENDIENTES","Beneficio descuento por dependientes economicos. ","Atributo texto","SI o NO","Si la respuesta es afirmativa el excel esta formulado para tomar el valor que es posible como beneficio de ser negativa siplemente deja un 0. "]
["PENSIONADO","Información para calculo de cotizacion salud","Atributo texto","SI o NO","Para los pensionados se debe informar con un SI para que el excel no calcule el valor de pago por Salud. "]
["RIESGO","Número que indica el riesgo sobre el cual cotiza el tercero.","Atributo texto",1,"De acuerdo al número que tenga esta casilla será el porcentaje por el cual calculará el pago del riesgo que cancela el tercero. 1=0,522%;\n2=1,044\n3=2,436%\n4=4,35%\n5=6,96%"]
["ARL","Información para calculo de cotizacion ARL","Atributo texto","SI o NO","Si la respuesta es SI el excel esta formulado para tener en cuenta el porcentaje que se indicio y calcular el valor cotizado de ser negativa deja 0."]
["INFORMACION "]
["Pagos o abonos en cuenta sin iva","Valor a cobrar sin Iva","Atributo texto",9734175,"Valor que se esta cobrando sin Iva. "]
["IVA honorarios","Iva a cobrar ","Atributo texto",{"$f":"+D34*19%","v":1849493.25},"Valor que  cobra cuando el tercero factura Iva. "]
["Gastos de Viaje","Valor recibido por el tercero por concepto de Gastos de viaje","Atributo texto",2000000,"Valor que el tercero recibio por concepto de gastos de viaje en el mes al cual esta realizando el debido cobro. "]
["Pensiones Voluntarias","Valor que esta pagando voluntariamente a pensiones","Atributo texto",2000000,"Si el tercero esta realizando pago a pensiones voluntarias y aporta el debido certificado se diligencia esta casilla para tenerle en cuenta el beneficio por este concepto. "]
["AFC","Valor que el tercero informa que desea sea consignado a su cuenta AFC.","Atributo texto",2000000,"Si el tercero esta realizando ahorro en cuentas AFC y quiere que se le tenga en cuenta el beneficio debe informar para que se le tenga en cuenta tambien el beneficio"]
["Otro","Campo que permite tener en cuenta otro tipo de renta exenta no mencionada anteriormente.","Atributo texto",2000000,"De acuerdo a como lo indique la norma se tendra en cuenta algun otro tipo de renta exenta si asi lo indica y que no supere el tope que en la misma se especifique. "]
["Medicina Prepagada","Deducción de la base grabable por pago de medicina prepagada. ","Atributo texto",2000000,"El tercero debe aportar la certificacion del pago de medicina prepagada del año inmediatamente anterior para tener en cuenta este beneficio. "]
["Intereses Vivienda","Deducción de la base grabable por pago de intereres de vivivenda. ","Atributo texto",2000000,"El tercero debe aportar la certificacion del pago de intereses de vivienda del año inmediatamente anterior para tener en cuenta este beneficio. "]
["VALOR A PAGAR","Valor a girar ","Atributo automático",9264750,"Valor que finalmente despues de las retenciones que hayan a lugar se determina como definitivo para pago. "]
["INFORMACION A DILIGENCIAR CUANDO ES UNA JURIDICA"]
["CONTRATO No. ","Consecutivo de control. ","Atributo texto",69,"Numero de contrato del cual corresponde la cuenta de cobro que se está gestionando. "]
["AÑO","Vigencia en la cual se celebró el contrato","Atributo texto",2022,"Año en el cual fue celebrado el contrato del cual se esta gestionando el pago. "]
["RUBRO","Atributo que describe el código del rubro a ejecutar","Atributo automático","C-1999-0300-8-0-1999053-02","Este campo esta directemante relacionado con la dependencia a la que pertenece solicitante"]
["CÓDIGO DEPENDENCIA","Atributo que describe el código de la dependencia que ejecuta. ","Atributo automático","19-10-00-12","Este campo esta directemante relacionado con la dependencia a la que pertenece solicitante"]
["No COMPROMISO","El grupo de presupuesto luego de recibir el inicio de un acto administrativo genera en el Sistema SIIF el consecutivo. ","Atributo texto",11021,"El grupo de presupuesto luego de recibir el inicio de un acto administrativo genera en el Sistema SIIF Nación un proceso donde se compromete el presupuesto de la entidad para el contrato en cuestión obteniendo un consecutivo que permitirá identificar y controlar los saldos de dicho contrato. "]
["Factura / Doc Equivalente","Número de facura ","Atributo texto","AVC 157485","Cuando es una sola factura se especifica, de ser necesario se indica que se adiciona cuadro con la relacion y se indica las facturas que comprendan la cuenta de cobro. "]
["LIQUIDACION IMPUESTOS PJURIDICA SERVICIOS - COMPRAS ","Según sea el caso se diligencia el concepto de cobro antes de IVA ","Atributo texto",15000000,"De acuerdo al concepto que se este cobrando se diligencia el valor según sea el caso para que el excel pueda determinar a cual le toma calculo de IVA."]
["Retefuente","Informacion de tarifa a aplicar según sea el caso","Atributo texto",2.5000000000000001E-2,"Teniendo en cuenta el concepto de la cuenta de cobro y la calidad del sugeto de retención se determinará la tarifa vigente a aplicar. "]
["Rete IVA","Informacion de tarifa a aplicar según sea el caso","Atributo texto",0.15,"Teniendo en cuenta el concepto de la cuenta de cobro y la calidad del sugeto de retención se determinará la tarifa vigente a aplicar. "]
["ICA ","Informacion de tarifa a aplicar según sea el caso","Atributo texto",0.01,"Teniendo en cuenta el concepto de la cuenta de cobro y la calidad del sugeto de retención se determinará la tarifa vigente a aplicar. "]
["Nombre","Nombre de quien realizo la liquidación ","Atributo texto","KAREN RINCON","Se informará quien fue el funcionario que realizó la liquidación para en caso de una consulta futura se pueda determinar a quien dirigirse. "]
[]
[]
[]
[]
[]
[]
[]
[]
[]
[]
[]
["Ante cualquier inquietud que surja con el diligenciamiento de los anteriores campos, dirigirse al funcionario(a) de Gestión de Viáticos "]

{"sheet":"Documento Equivalente","index":2,"n_rows":30,"n_cols":5,"rows_kept":30,"cut":false,"hidden":true,"merged":[[0,0,2,1],[9,2,9,4],[10,2,10,4],[11,3,11,4],[29,3,29,4]]}
[null,null,"PROCESO GESTIÓN FINANCIERA","Código","GFFT13"]
[null,null,"DOCUMENTO EQUIVALENTE","Versión",2]
[null,null,null,"Fecha"]
[null,null,"DOCUMENTO SOPORTE EN ADQUISICIONES EFECTUADAS A NO OBLIGADOS A FACTURAR"]
[]
[null,"SUPERINTENDENCIA NACIONAL DE SALUD",null,"N° DOCUMENTO",{"$f":"+GFFT23!J10","v":0}]
[null,"860.062.187-4"]
[null,"Autorización Numeración de Documento Soporte N° 13028064664057 con vigencia desde SNS 4326 hasta SNS 10.000 fecha del 22 Sep 2022"]
[]
[null,"NOMBRE DEL PROVEEDOR",{"$f":"+GFFT23!B4","v":0}]
[null,"NIT",{"$f":"+GFFT23!G4","v":0}]
[null,"CIUDAD Y FECHA DE LA OPERACIÓN",{"$f":"+GFFT23!G5","v":"00:00:00"}]
[]
[]
[null,"RUBRO",{"$f":"+GFFT23!I6","v":0},"CONTRATO",{"$f":"+GFFT23!I5","v":0}]
[null,"DEPENDENCIA",{"$f":"+GFFT23!I7","v":0},"PERIODO",{"$f":"+GFFT23!I11","v":"2023-02-01"}]
[]
[]
[null,"CANTIDAD","CONCEPTO","P. UNITARIO","VALOR"]
[null,null,null,{"$f":"+GFFT23!B8","v":0},{"$f":"+D20","v":0}]
[]
[]
[null,null,null,"TOTAL",{"$f":"SUM(E20:E22)","v":0}]
[null,null,null,"RETEFUENTE",{"$f":"+GFFT23!E34+GFFT23!E35+GFFT23!E36+GFFT23!E37+GFFT23!E38+GFFT23!E39","v":{"$error":"#DIV/0!"}}]
[null,"VALOR EN LETRAS",{"$f":"UPPER(CONVERTIRNUM(E26))","v":{"$error":"#VALUE!"}},"RETEICA",{"$f":"+GFFT23!E40","v":0}]
[null,null,null,"TOTAL A PAGAR",{"$f":"E23-E24-E25","v":{"$error":"#DIV/0!"}}]
[]
[]
[]
[null,"FIRMA  DEL PROVEEDOR",null,"APROBADO"]

{"sheet":"DESPLEGABLE","index":3,"n_rows":13,"n_cols":1,"rows_kept":13,"cut":false,"hidden":true,"merged":[]}
["Periodo"]
["2023-01-01"]
["2023-02-01"]
["2023-03-01"]
["2023-04-01"]
["2023-05-01"]
["2023-06-01"]
["2023-07-01"]
["2023-08-01"]
["2023-09-01"]
["2023-10-01"]
["2023-11-01"]
["2023-12-01"]